[Event "Titled Tuesday Blitz June 1 2021"]
[White "Makhnev, Denis"]
[Black "Turzo, Attila"]
[WhiteFideId "13707647"]
[BlackFideId "704954"]
[WhiteElo "2549"]
[BlackElo "2478"]
[Result "1/2-1/2"]
[Round "07"]
[TimeControl "180+1"]
[Date "2021.06.01"]
[WhiteClock "0:00:19"]
[BlackClock "0:00:35"]

1. Nf3 {[%clk 0:03:00]}  d5 {[%clk 0:03:00]} 2. c4 {[%clk 0:03:00]}  c6 {[%clk 0:03:00]} 3. cxd5 {[%clk 0:03:00]}  cxd5 {[%clk 0:03:01]} 4. d4 {[%clk 0:03:01]}  Nc6 {[%clk 0:03:02]} 5. Nc3 {[%clk 0:03:02]}  Nf6 {[%clk 0:03:02]} 6. Bf4 {[%clk 0:03:02]}  a6 {[%clk 0:03:02]} 7. Rc1 {[%clk 0:03:01]}  Bf5 {[%clk 0:02:56]} 8. e3 {[%clk 0:03:00]}  e6 {[%clk 0:02:54]} 9. Be2 {[%clk 0:02:59]}  Bd6 {[%clk 0:02:54]} 10. Bxd6 {[%clk 0:02:56]}  Qxd6 {[%clk 0:02:55]} 11. O-O {[%clk 0:02:56]}  O-O {[%clk 0:02:55]} 12. Na4 {[%clk 0:02:56]}  Nd7 {[%clk 0:02:53]} 13. Qd2 {[%clk 0:02:53]}  Rfc8 {[%clk 0:02:49]} 14. Nc5 {[%clk 0:02:51]}  Nxc5 {[%clk 0:02:46]} 15. Rxc5 {[%clk 0:02:52]}  Bg4 {[%clk 0:02:39]} 16. Rfc1 {[%clk 0:02:44]}  Bxf3 {[%clk 0:02:39]} 17. Bxf3 {[%clk 0:02:44]}  b6 {[%clk 0:02:35]} 18. R5c3 {[%clk 0:02:41]}  Ne7 {[%clk 0:02:21]} 19. Be2 {[%clk 0:02:41]}  a5 {[%clk 0:02:13]} 20. g3 {[%clk 0:02:30]}  g6 {[%clk 0:02:13]} 21. a3 {[%clk 0:02:09]}  Rxc3 {[%clk 0:02:05]} 22. Rxc3 {[%clk 0:02:09]}  Rc8 {[%clk 0:02:05]} 23. Rxc8+ {[%clk 0:02:09]}  Nxc8 {[%clk 0:02:05]} 24. Qc3 {[%clk 0:02:09]}  Ne7 {[%clk 0:02:02]} 25. Bb5 {[%clk 0:02:09]}  Qd8 {[%clk 0:01:55]} 26. Kg2 {[%clk 0:02:07]}  Qc8 {[%clk 0:01:55]} 27. Qd2 {[%clk 0:02:01]}  Nf5 {[%clk 0:01:52]} 28. Bd3 {[%clk 0:01:59]}  Nd6 {[%clk 0:01:51]} 29. h4 {[%clk 0:01:57]}  h5 {[%clk 0:01:51]} 30. Qd1 {[%clk 0:01:49]}  Kg7 {[%clk 0:01:49]} 31. Qb3 {[%clk 0:01:48]}  Qc7 {[%clk 0:01:48]} 32. Kf3 {[%clk 0:01:46]}  Kf6 {[%clk 0:01:47]} 33. Ke2 {[%clk 0:01:45]}  Ke7 {[%clk 0:01:47]} 34. Qd1 {[%clk 0:01:37]}  Nc4 {[%clk 0:01:41]} 35. Qc2 {[%clk 0:01:36]}  Kd8 {[%clk 0:01:40]} 36. a4 {[%clk 0:01:33]}  Nd6 {[%clk 0:01:37]} 37. Qxc7+ {[%clk 0:01:30]}  Kxc7 {[%clk 0:01:37]} 38. b3 {[%clk 0:01:29]}  Ne8 {[%clk 0:01:32]} 39. f3 {[%clk 0:01:28]}  Nd6 {[%clk 0:01:29]} 40. g4 {[%clk 0:01:27]}  Kd7 {[%clk 0:01:20]} 41. gxh5 {[%clk 0:01:26]}  gxh5 {[%clk 0:01:21]} 42. e4 {[%clk 0:01:25]}  Ke7 {[%clk 0:01:13]} 43. e5 {[%clk 0:01:14]}  Nc8 {[%clk 0:01:01]} 44. f4 {[%clk 0:01:12]}  f5 {[%clk 0:00:57]} 45. Kd2 {[%clk 0:00:59]}  Kf7 {[%clk 0:00:54]} 46. Kc3 {[%clk 0:00:55]}  Ne7 {[%clk 0:00:52]} 47. Be2 {[%clk 0:00:54]}  Kg6 {[%clk 0:00:50]} 48. Bb5 {[%clk 0:00:54]}  Kf7 {[%clk 0:00:47]} 49. Be2 {[%clk 0:00:52]}  Ng6 {[%clk 0:00:45]} 50. Bxh5 {[%clk 0:00:51]}  Kg7 {[%clk 0:00:45]} 51. b4 {[%clk 0:00:20]}  Nxf4 {[%clk 0:00:40]} 52. Be8 {[%clk 0:00:20]}  Ng2 {[%clk 0:00:37]} 53. h5 {[%clk 0:00:19]}  Nf4 {[%clk 0:00:37]} 54. bxa5 {[%clk 0:00:19]}  bxa5 {[%clk 0:00:37]} 55. Kd2 {[%clk 0:00:19]}  Kh6 {[%clk 0:00:36]} 56. Bf7 {[%clk 0:00:19]}  Kg7 {[%clk 0:00:35]} 57. Be8 {[%clk 0:00:19]}  Kh6 {[%clk 0:00:35]} 58. Bf7 {[%clk 0:00:19]}  Kg7 {[%clk 0:00:35]} 59. Be8 {[%clk 0:00:19]} 1/2-1/2


[Site "https://www.chess.com"]

[Event "Titled Tuesday Blitz June 1 2021"]
[White "Murzin, Volodar"]
[Black "Gurvich, Vitaly"]
[WhiteFideId "44155573"]
[BlackFideId "24164852"]
[WhiteElo "2768"]
[BlackElo "2583"]
[Result "1-0"]
[Round "07"]
[TimeControl "180+1"]
[Date "2021.06.01"]
[WhiteClock "0:00:07"]
[BlackClock "0:00:02"]

1. e4 {[%clk 0:03:00]}  c6 {[%clk 0:02:45]} 2. Nf3 {[%clk 0:02:59]}  d5 {[%clk 0:02:46]} 3. exd5 {[%clk 0:02:59]}  cxd5 {[%clk 0:02:46]} 4. Ne5 {[%clk 0:03:00]}  Nd7 {[%clk 0:02:46]} 5. Bb5 {[%clk 0:02:59]}  a6 {[%clk 0:02:45]} 6. Bxd7+ {[%clk 0:02:57]}  Bxd7 {[%clk 0:02:46]} 7. O-O {[%clk 0:02:57]}  Bf5 {[%clk 0:02:40]} 8. d4 {[%clk 0:02:57]}  e6 {[%clk 0:02:40]} 9. c3 {[%clk 0:02:55]}  Bd6 {[%clk 0:02:39]} 10. Re1 {[%clk 0:02:50]}  Ne7 {[%clk 0:02:33]} 11. Nd2 {[%clk 0:02:48]}  Qc7 {[%clk 0:02:31]} 12. Nf1 {[%clk 0:02:46]}  O-O {[%clk 0:02:30]} 13. Ng3 {[%clk 0:02:46]}  Rae8 {[%clk 0:02:27]} 14. a4 {[%clk 0:02:22]}  f6 {[%clk 0:02:22]} 15. Nd3 {[%clk 0:02:20]}  e5 {[%clk 0:02:01]} 16. dxe5 {[%clk 0:02:04]}  fxe5 {[%clk 0:02:02]} 17. Bg5 {[%clk 0:02:03]}  Nc6 {[%clk 0:01:41]} 18. Nc5 {[%clk 0:01:36]}  Bg6 {[%clk 0:00:57]} 19. b4 {[%clk 0:00:51]}  Qf7 {[%clk 0:00:55]} 20. Nxb7 {[%clk 0:00:34]}  Bb8 {[%clk 0:00:40]} 21. b5 {[%clk 0:00:25]}  Na7 {[%clk 0:00:19]} 22. bxa6 {[%clk 0:00:17]}  Qxf2+ {[%clk 0:00:17]} 23. Kh1 {[%clk 0:00:17]}  h6 {[%clk 0:00:17]} 24. Be3 {[%clk 0:00:13]}  Qf6 {[%clk 0:00:17]} 25. Qxd5+ {[%clk 0:00:13]}  Bf7 {[%clk 0:00:17]} 26. Qe4 {[%clk 0:00:11]}  Qxa6 {[%clk 0:00:16]} 27. Nc5 {[%clk 0:00:10]}  Qc8 {[%clk 0:00:13]} 28. Nf5 {[%clk 0:00:08]}  Be6 {[%clk 0:00:08]} 29. Nxh6+ {[%clk 0:00:07]}  gxh6 {[%clk 0:00:06]} 30. Qg6+ {[%clk 0:00:08]}  Kh8 {[%clk 0:00:07]} 31. Qxh6+ {[%clk 0:00:09]}  Kg8 {[%clk 0:00:07]} 32. Qg6+ {[%clk 0:00:10]}  Kh8 {[%clk 0:00:07]} 33. Bh6 {[%clk 0:00:09]}  Rf7 {[%clk 0:00:08]} 34. Re3 {[%clk 0:00:08]}  Qxc5 {[%clk 0:00:04]} 35. Rg3 {[%clk 0:00:07]}  Ree7 {[%clk 0:00:02]} 36. Qg8# {[%clk 0:00:07]} 1-0


[Site "https://www.chess.com"]

[Event "Titled Tuesday Blitz June 1 2021"]
[White "Nakamura, Hikaru"]
[Black "Visakh N R"]
[WhiteFideId "2016192"]
[BlackFideId "25012223"]
[WhiteElo "2900"]
[BlackElo "2428"]
[Result "1-0"]
[Round "07"]
[TimeControl "180+1"]
[Date "2021.06.01"]
[WhiteClock "0:00:09"]
[BlackClock "0:00:06"]

1. b4 {[%clk 0:03:00]}  e5 {[%clk 0:02:54]} 2. Bb2 {[%clk 0:03:00]}  Bxb4 {[%clk 0:02:54]} 3. Bxe5 {[%clk 0:03:00]}  Nf6 {[%clk 0:02:55]} 4. e3 {[%clk 0:03:00]}  O-O {[%clk 0:02:55]} 5. Nf3 {[%clk 0:03:00]}  Nc6 {[%clk 0:02:55]} 6. Bg3 {[%clk 0:02:56]}  d5 {[%clk 0:02:50]} 7. c3 {[%clk 0:02:56]}  Bd6 {[%clk 0:02:48]} 8. Bh4 {[%clk 0:02:53]}  Bf5 {[%clk 0:02:47]} 9. d4 {[%clk 0:02:53]}  Be7 {[%clk 0:02:46]} 10. Bxf6 {[%clk 0:02:53]}  Bxf6 {[%clk 0:02:46]} 11. Bd3 {[%clk 0:02:53]}  Bxd3 {[%clk 0:02:45]} 12. Qxd3 {[%clk 0:02:54]}  Na5 {[%clk 0:02:45]} 13. Nbd2 {[%clk 0:02:54]}  c5 {[%clk 0:02:45]} 14. O-O {[%clk 0:02:54]}  Rc8 {[%clk 0:02:45]} 15. Rab1 {[%clk 0:02:53]}  a6 {[%clk 0:02:39]} 16. Rfd1 {[%clk 0:02:31]}  b5 {[%clk 0:02:38]} 17. Nf1 {[%clk 0:02:24]}  Re8 {[%clk 0:02:28]} 18. Ng3 {[%clk 0:02:21]}  cxd4 {[%clk 0:02:20]} 19. Nxd4 {[%clk 0:01:57]}  Nc4 {[%clk 0:02:05]} 20. Rdc1 {[%clk 0:01:42]}  g6 {[%clk 0:02:02]} 21. Nge2 {[%clk 0:01:40]}  Nb6 {[%clk 0:02:01]} 22. Rc2 {[%clk 0:01:36]}  Rc4 {[%clk 0:02:00]} 23. Rd1 {[%clk 0:01:36]}  Be5 {[%clk 0:01:58]} 24. Nf3 {[%clk 0:01:36]}  Bd6 {[%clk 0:01:46]} 25. h4 {[%clk 0:01:30]}  Qf6 {[%clk 0:01:42]} 26. Rcd2 {[%clk 0:01:23]}  Bb8 {[%clk 0:01:35]} 27. Qb1 {[%clk 0:01:21]}  Kg7 {[%clk 0:01:23]} 28. Rd4 {[%clk 0:01:21]}  Re4 {[%clk 0:01:22]} 29. Rxc4 {[%clk 0:01:15]}  Rxc4 {[%clk 0:01:19]} 30. Rd4 {[%clk 0:01:14]}  Na4 {[%clk 0:00:54]} 31. Qd3 {[%clk 0:01:01]}  Nc5 {[%clk 0:00:44]} 32. Qd1 {[%clk 0:01:01]}  Ne4 {[%clk 0:00:41]} 33. Qd3 {[%clk 0:00:55]}  Nc5 {[%clk 0:00:27]} 34. Qc2 {[%clk 0:00:53]}  Ne4 {[%clk 0:00:22]} 35. Qb3 {[%clk 0:00:41]}  Ba7 {[%clk 0:00:19]} 36. Rxc4 {[%clk 0:00:37]}  dxc4 {[%clk 0:00:19]} 37. Qc2 {[%clk 0:00:37]}  Nc5 {[%clk 0:00:19]} 38. Nf4 {[%clk 0:00:28]}  Bb8 {[%clk 0:00:15]} 39. Nd5 {[%clk 0:00:28]}  Qd6 {[%clk 0:00:13]} 40. Nf4 {[%clk 0:00:23]}  Nd3 {[%clk 0:00:12]} 41. Nxd3 {[%clk 0:00:21]}  cxd3 {[%clk 0:00:13]} 42. Qd2 {[%clk 0:00:21]}  Qd5 {[%clk 0:00:14]} 43. Ne1 {[%clk 0:00:21]}  Be5 {[%clk 0:00:11]} 44. Nxd3 {[%clk 0:00:20]}  Bf6 {[%clk 0:00:11]} 45. g3 {[%clk 0:00:18]}  Qc4 {[%clk 0:00:11]} 46. Nf4 {[%clk 0:00:19]}  Bxc3 {[%clk 0:00:11]} 47. Qc2 {[%clk 0:00:17]}  Be5 {[%clk 0:00:10]} 48. Qxc4 {[%clk 0:00:16]}  bxc4 {[%clk 0:00:11]} 49. Nd5 {[%clk 0:00:16]}  f5 {[%clk 0:00:07]} 50. Kf1 {[%clk 0:00:16]}  a5 {[%clk 0:00:08]} 51. Ke2 {[%clk 0:00:15]}  Kf7 {[%clk 0:00:04]} 52. Nb6 {[%clk 0:00:16]}  c3 {[%clk 0:00:04]} 53. Nc4 {[%clk 0:00:16]}  Ke6 {[%clk 0:00:04]} 54. Nxe5 {[%clk 0:00:11]}  Kxe5 {[%clk 0:00:05]} 55. f3 {[%clk 0:00:11]}  h6 {[%clk 0:00:03]} 56. Kd3 {[%clk 0:00:12]}  g5 {[%clk 0:00:03]} 57. hxg5 {[%clk 0:00:09]}  hxg5 {[%clk 0:00:04]} 58. Kxc3 {[%clk 0:00:10]}  Kd5 {[%clk 0:00:05]} 59. Kd3 {[%clk 0:00:10]}  Ke5 {[%clk 0:00:05]} 60. e4 {[%clk 0:00:10]}  f4 {[%clk 0:00:06]} 61. g4 {[%clk 0:00:09]} 1-0


[Site "https://www.chess.com"]

[Event "Titled Tuesday Blitz June 1 2021"]
[White "Narayanan, Srinath"]
[Black "Senthil Maran K"]
[WhiteFideId "5018420"]
[BlackFideId "25035681"]
[WhiteElo "2472"]
[BlackElo "2194"]
[Result "0-1"]
[Round "07"]
[TimeControl "180+1"]
[Date "2021.06.01"]
[WhiteClock "0:00:01"]
[BlackClock "0:00:05"]

1. Nf3 {[%clk 0:03:00]}  d5 {[%clk 0:02:59]} 2. b3 {[%clk 0:03:01]}  Nf6 {[%clk 0:02:57]} 3. Bb2 {[%clk 0:03:01]}  g6 {[%clk 0:02:57]} 4. e3 {[%clk 0:03:01]}  Bg7 {[%clk 0:02:57]} 5. c4 {[%clk 0:03:02]}  c5 {[%clk 0:02:54]} 6. cxd5 {[%clk 0:03:01]}  Qxd5 {[%clk 0:02:54]} 7. Nc3 {[%clk 0:03:02]}  Qf5 {[%clk 0:02:54]} 8. d4 {[%clk 0:02:56]}  O-O {[%clk 0:02:50]} 9. Bd3 {[%clk 0:02:56]}  Qh5 {[%clk 0:02:47]} 10. dxc5 {[%clk 0:02:46]}  Qxc5 {[%clk 0:02:43]} 11. O-O {[%clk 0:02:46]}  Nc6 {[%clk 0:02:41]} 12. Rc1 {[%clk 0:02:46]}  Qa5 {[%clk 0:02:40]} 13. Qe2 {[%clk 0:02:43]}  Bg4 {[%clk 0:02:31]} 14. h3 {[%clk 0:02:42]}  Bxf3 {[%clk 0:02:30]} 15. gxf3 {[%clk 0:02:43]}  Rfd8 {[%clk 0:02:04]} 16. f4 {[%clk 0:02:39]}  Nd5 {[%clk 0:01:58]} 17. Nxd5 {[%clk 0:02:18]}  Qxd5 {[%clk 0:01:52]} 18. Rfd1 {[%clk 0:02:16]}  Bxb2 {[%clk 0:01:41]} 19. Qxb2 {[%clk 0:02:14]}  Qf3 {[%clk 0:01:21]} 20. Qe2 {[%clk 0:01:42]}  Qxh3 {[%clk 0:01:17]} 21. Be4 {[%clk 0:01:41]}  Rxd1+ {[%clk 0:01:01]} 22. Qxd1 {[%clk 0:01:42]}  Rd8 {[%clk 0:00:51]} 23. Qe2 {[%clk 0:01:41]}  Rd6 {[%clk 0:00:38]} 24. Bg2 {[%clk 0:01:38]}  Qd7 {[%clk 0:00:37]} 25. a3 {[%clk 0:01:36]}  Rd2 {[%clk 0:00:29]} 26. Qf3 {[%clk 0:01:33]}  Ra2 {[%clk 0:00:27]} 27. b4 {[%clk 0:01:24]}  a6 {[%clk 0:00:25]} 28. f5 {[%clk 0:00:56]}  Qxf5 {[%clk 0:00:20]} 29. Qxf5 {[%clk 0:00:34]}  gxf5 {[%clk 0:00:21]} 30. Bxc6 {[%clk 0:00:33]}  bxc6 {[%clk 0:00:22]} 31. Rxc6 {[%clk 0:00:34]}  Rxa3 {[%clk 0:00:21]} 32. Kg2 {[%clk 0:00:34]}  Rb3 {[%clk 0:00:20]} 33. Rxa6 {[%clk 0:00:34]}  Rxb4 {[%clk 0:00:20]} 34. Kg3 {[%clk 0:00:34]}  e6 {[%clk 0:00:20]} 35. f4 {[%clk 0:00:28]}  Kg7 {[%clk 0:00:20]} 36. Kf3 {[%clk 0:00:28]}  Rb1 {[%clk 0:00:20]} 37. Ra2 {[%clk 0:00:28]}  Rf1+ {[%clk 0:00:20]} 38. Kg3 {[%clk 0:00:28]}  Rg1+ {[%clk 0:00:20]} 39. Kf3 {[%clk 0:00:28]}  Rg4 {[%clk 0:00:20]} 40. Rh2 {[%clk 0:00:28]}  Rg1 {[%clk 0:00:20]} 41. Ra2 {[%clk 0:00:28]}  Rf1+ {[%clk 0:00:20]} 42. Kg3 {[%clk 0:00:28]}  Rb1 {[%clk 0:00:20]} 43. Kf3 {[%clk 0:00:28]}  h5 {[%clk 0:00:20]} 44. Rg2+ {[%clk 0:00:28]}  Kf6 {[%clk 0:00:20]} 45. Rg8 {[%clk 0:00:28]}  Rh1 {[%clk 0:00:19]} 46. Kg2 {[%clk 0:00:27]}  Rh4 {[%clk 0:00:19]} 47. Kf3 {[%clk 0:00:28]}  Rg4 {[%clk 0:00:19]} 48. Rh8 {[%clk 0:00:28]}  h4 {[%clk 0:00:20]} 49. Rh6+ {[%clk 0:00:26]}  Kg7 {[%clk 0:00:20]} 50. Rh5 {[%clk 0:00:26]}  f6 {[%clk 0:00:16]} 51. Kf2 {[%clk 0:00:25]}  e5 {[%clk 0:00:14]} 52. fxe5 {[%clk 0:00:22]}  Kg6 {[%clk 0:00:15]} 53. Rh8 {[%clk 0:00:19]}  fxe5 {[%clk 0:00:15]} 54. Rg8+ {[%clk 0:00:20]}  Kf6 {[%clk 0:00:15]} 55. Rf8+ {[%clk 0:00:20]}  Ke6 {[%clk 0:00:15]} 56. Re8+ {[%clk 0:00:20]}  Kd5 {[%clk 0:00:15]} 57. Ra8 {[%clk 0:00:18]}  Rb4 {[%clk 0:00:12]} 58. Kf3 {[%clk 0:00:17]}  Rb1 {[%clk 0:00:11]} 59. Rd8+ {[%clk 0:00:13]}  Ke6 {[%clk 0:00:11]} 60. Rh8 {[%clk 0:00:14]}  Rf1+ {[%clk 0:00:11]} 61. Kg2 {[%clk 0:00:11]}  Re1 {[%clk 0:00:11]} 62. Kf2 {[%clk 0:00:12]}  Rh1 {[%clk 0:00:10]} 63. Kg2 {[%clk 0:00:12]}  Rb1 {[%clk 0:00:09]} 64. Rxh4 {[%clk 0:00:12]}  Kd5 {[%clk 0:00:09]} 65. Kf2 {[%clk 0:00:07]}  Rb2+ {[%clk 0:00:09]} 66. Kf3 {[%clk 0:00:07]}  e4+ {[%clk 0:00:09]} 67. Kg3 {[%clk 0:00:04]}  Kc4 {[%clk 0:00:09]} 68. Rh5 {[%clk 0:00:01]}  Kd3 {[%clk 0:00:09]} 69. Rxf5 {[%clk 0:00:02]}  Kxe3 {[%clk 0:00:10]} 70. Rf8 {[%clk 0:00:03]}  Rb1 {[%clk 0:00:10]} 71. Kg2 {[%clk 0:00:03]}  Ke2 {[%clk 0:00:09]} 72. Rf2+ {[%clk 0:00:03]}  Ke3 {[%clk 0:00:08]} 73. Ra2 {[%clk 0:00:04]}  Rd1 {[%clk 0:00:07]} 74. Ra3+ {[%clk 0:00:04]}  Rd3 {[%clk 0:00:07]} 75. Ra8 {[%clk 0:00:04]}  Rd1 {[%clk 0:00:07]} 76. Ra7 {[%clk 0:00:04]}  Ke2 {[%clk 0:00:07]} 77. Ra2+ {[%clk 0:00:03]}  Rd2 {[%clk 0:00:07]} 78. Ra3 {[%clk 0:00:04]}  e3 {[%clk 0:00:08]} 79. Kg3 {[%clk 0:00:04]}  Rd3 {[%clk 0:00:06]} 80. Ra2+ {[%clk 0:00:04]}  Kf1 {[%clk 0:00:05]} 81. Kf4 {[%clk 0:00:01]}  e2 {[%clk 0:00:05]} 82. Ke4 {[%clk 0:00:01]}  Rb3 {[%clk 0:00:05]} 0-1


[Site "https://www.chess.com"]

[Event "Titled Tuesday Blitz June 1 2021"]
[White "Nesterov, Arseniy"]
[Black "Lamaze, Simon"]
[WhiteFideId "24198455"]
[BlackFideId "36069264"]
[WhiteElo "2441"]
[BlackElo "1938"]
[Result "1-0"]
[Round "07"]
[TimeControl "180+1"]
[Date "2021.06.01"]
[WhiteClock "0:00:04"]
[BlackClock "0:00:02"]

1. d4 {[%clk 0:03:00]}  Nf6 {[%clk 0:02:46]} 2. c4 {[%clk 0:03:00]}  e6 {[%clk 0:02:47]} 3. Nf3 {[%clk 0:03:00]}  b6 {[%clk 0:02:47]} 4. g3 {[%clk 0:02:59]}  Ba6 {[%clk 0:02:47]} 5. Qc2 {[%clk 0:02:59]}  b5 {[%clk 0:02:45]} 6. cxb5 {[%clk 0:02:51]}  Bxb5 {[%clk 0:02:46]} 7. Nc3 {[%clk 0:02:51]}  Bc6 {[%clk 0:02:44]} 8. Bg2 {[%clk 0:02:50]}  d5 {[%clk 0:02:44]} 9. O-O {[%clk 0:02:48]}  Be7 {[%clk 0:02:44]} 10. Ne5 {[%clk 0:02:48]}  Bb7 {[%clk 0:02:41]} 11. Bf4 {[%clk 0:02:31]}  O-O {[%clk 0:02:39]} 12. Nd3 {[%clk 0:02:28]}  Nbd7 {[%clk 0:02:35]} 13. Na4 {[%clk 0:02:25]}  Ne4 {[%clk 0:01:46]} 14. Bxc7 {[%clk 0:02:19]}  Qe8 {[%clk 0:01:46]} 15. Nac5 {[%clk 0:02:11]}  Ndxc5 {[%clk 0:01:38]} 16. dxc5 {[%clk 0:01:57]}  Rc8 {[%clk 0:01:32]} 17. Bf4 {[%clk 0:01:44]}  Nxc5 {[%clk 0:01:24]} 18. Nxc5 {[%clk 0:01:44]}  Rxc5 {[%clk 0:01:25]} 19. Qd2 {[%clk 0:01:43]}  Qb5 {[%clk 0:01:10]} 20. Be3 {[%clk 0:01:37]}  Rc7 {[%clk 0:00:29]} 21. Bxa7 {[%clk 0:01:29]}  Rfc8 {[%clk 0:00:29]} 22. Rfc1 {[%clk 0:01:24]}  Qa4 {[%clk 0:00:20]} 23. Bb6 {[%clk 0:01:07]}  Rxc1+ {[%clk 0:00:19]} 24. Rxc1 {[%clk 0:01:07]}  Qxa2 {[%clk 0:00:19]} 25. Rxc8+ {[%clk 0:01:02]}  Bxc8 {[%clk 0:00:20]} 26. Qc1 {[%clk 0:01:00]}  Qa8 {[%clk 0:00:16]} 27. e4 {[%clk 0:00:52]}  dxe4 {[%clk 0:00:13]} 28. Bxe4 {[%clk 0:00:52]}  Qxe4 {[%clk 0:00:12]} 29. Qxc8+ {[%clk 0:00:51]}  Bf8 {[%clk 0:00:12]} 30. Qc3 {[%clk 0:00:16]}  h5 {[%clk 0:00:10]} 31. Qd4 {[%clk 0:00:13]}  Qb1+ {[%clk 0:00:10]} 32. Kg2 {[%clk 0:00:13]}  Qf5 {[%clk 0:00:10]} 33. b4 {[%clk 0:00:12]}  g5 {[%clk 0:00:10]} 34. Bc5 {[%clk 0:00:12]}  h4 {[%clk 0:00:10]} 35. gxh4 {[%clk 0:00:08]}  Bg7 {[%clk 0:00:10]} 36. Qd8+ {[%clk 0:00:08]}  Kh7 {[%clk 0:00:10]} 37. Qxg5 {[%clk 0:00:09]}  Qe4+ {[%clk 0:00:11]} 38. f3 {[%clk 0:00:07]}  Qe2+ {[%clk 0:00:11]} 39. Bf2 {[%clk 0:00:06]}  Qb2 {[%clk 0:00:11]} 40. b5 {[%clk 0:00:06]}  e5 {[%clk 0:00:10]} 41. Qf5+ {[%clk 0:00:06]}  Kg8 {[%clk 0:00:10]} 42. Qc8+ {[%clk 0:00:06]}  Kh7 {[%clk 0:00:10]} 43. Qc4 {[%clk 0:00:06]}  Bh6 {[%clk 0:00:09]} 44. Qxf7+ {[%clk 0:00:06]}  Kh8 {[%clk 0:00:08]} 45. Qh5 {[%clk 0:00:06]}  Kh7 {[%clk 0:00:09]} 46. Qf5+ {[%clk 0:00:06]}  Kg7 {[%clk 0:00:09]} 47. Qd7+ {[%clk 0:00:06]}  Kg8 {[%clk 0:00:09]} 48. Qc8+ {[%clk 0:00:03]}  Kg7 {[%clk 0:00:09]} 49. Qc7+ {[%clk 0:00:04]}  Kg8 {[%clk 0:00:09]} 50. Qc5 {[%clk 0:00:04]}  Bd2 {[%clk 0:00:07]} 51. b6 {[%clk 0:00:04]}  Be1 {[%clk 0:00:07]} 52. Qc8+ {[%clk 0:00:03]}  Kh7 {[%clk 0:00:06]} 53. Qd7+ {[%clk 0:00:03]}  Kg6 {[%clk 0:00:06]} 54. Qc6+ {[%clk 0:00:03]}  Kg7 {[%clk 0:00:05]} 55. Qc5 {[%clk 0:00:03]}  Kg6 {[%clk 0:00:05]} 56. b7 {[%clk 0:00:03]}  Bxf2 {[%clk 0:00:04]} 57. Qd5 {[%clk 0:00:04]}  Bd4+ {[%clk 0:00:03]} 58. Kh3 {[%clk 0:00:04]}  Qb1 {[%clk 0:00:02]} 59. Qe4+ {[%clk 0:00:04]}  Kh5 {[%clk 0:00:02]} 60. Qxb1 {[%clk 0:00:04]} 1-0


[Site "https://www.chess.com"]

[Event "Titled Tuesday Blitz June 1 2021"]
[White "Ozen, Bahadir"]
[Black "Leisch, Lukas"]
[WhiteFideId "6337058"]
[BlackFideId "1632094"]
[WhiteElo "2503"]
[BlackElo "2210"]
[Result "1/2-1/2"]
[Round "07"]
[TimeControl "180+1"]
[Date "2021.06.01"]
[WhiteClock "0:02:24"]
[BlackClock "0:02:31"]

1. e4 {[%clk 0:03:00]}  e6 {[%clk 0:03:00]} 2. d4 {[%clk 0:03:00]}  d5 {[%clk 0:03:00]} 3. exd5 {[%clk 0:03:01]}  exd5 {[%clk 0:03:01]} 4. Nf3 {[%clk 0:03:02]}  Nf6 {[%clk 0:03:01]} 5. Bd3 {[%clk 0:03:02]}  c5 {[%clk 0:03:02]} 6. O-O {[%clk 0:03:02]}  c4 {[%clk 0:03:02]} 7. Re1+ {[%clk 0:03:02]}  Be7 {[%clk 0:03:02]} 8. Bf1 {[%clk 0:03:02]}  O-O {[%clk 0:03:03]} 9. b3 {[%clk 0:03:01]}  cxb3 {[%clk 0:03:03]} 10. axb3 {[%clk 0:03:02]}  Nc6 {[%clk 0:03:04]} 11. Bf4 {[%clk 0:02:56]}  a6 {[%clk 0:02:48]} 12. c3 {[%clk 0:02:54]}  Re8 {[%clk 0:02:46]} 13. Bd3 {[%clk 0:02:48]}  Bg4 {[%clk 0:02:44]} 14. Nbd2 {[%clk 0:02:47]}  b5 {[%clk 0:02:35]} 15. h3 {[%clk 0:02:46]}  Bh5 {[%clk 0:02:35]} 16. Qb1 {[%clk 0:02:39]}  Bg6 {[%clk 0:02:33]} 17. Bxg6 {[%clk 0:02:32]}  hxg6 {[%clk 0:02:34]} 18. Qd3 {[%clk 0:02:32]}  Qb6 {[%clk 0:02:31]} 19. Ne5 {[%clk 0:02:24]} 1/2-1/2


[Site "https://www.chess.com"]

[Event "Titled Tuesday Blitz June 1 2021"]
[White "Pajeken, Jakob Leon"]
[Black "Nagy, Gabor"]
[WhiteFideId "12942839"]
[BlackFideId "737119"]
[WhiteElo "2404"]
[BlackElo "2789"]
[Result "0-1"]
[Round "07"]
[TimeControl "180+1"]
[Date "2021.06.01"]
[WhiteClock "0:02:06"]
[BlackClock "0:01:29"]

1. d4 {[%clk 0:03:00]}  Nf6 {[%clk 0:02:07]} 2. Nf3 {[%clk 0:03:00]}  d5 {[%clk 0:02:06]} 3. Bf4 {[%clk 0:03:00]}  c5 {[%clk 0:02:05]} 4. e3 {[%clk 0:03:01]}  Nc6 {[%clk 0:02:04]} 5. Nbd2 {[%clk 0:03:01]}  cxd4 {[%clk 0:02:01]} 6. exd4 {[%clk 0:03:01]}  Bf5 {[%clk 0:02:02]} 7. Bb5 {[%clk 0:02:59]}  e6 {[%clk 0:02:00]} 8. c4 {[%clk 0:02:59]}  Bd6 {[%clk 0:01:58]} 9. Bxd6 {[%clk 0:02:49]}  Qxd6 {[%clk 0:01:59]} 10. c5 {[%clk 0:02:50]}  Qc7 {[%clk 0:01:56]} 11. O-O {[%clk 0:02:47]}  O-O {[%clk 0:01:56]} 12. Re1 {[%clk 0:02:46]}  Ne4 {[%clk 0:01:53]} 13. Nxe4 {[%clk 0:02:44]}  dxe4 {[%clk 0:01:49]} 14. Bxc6 {[%clk 0:02:34]}  Qxc6 {[%clk 0:01:48]} 15. Ne5 {[%clk 0:02:34]}  Qd5 {[%clk 0:01:47]} 16. Qd2 {[%clk 0:02:25]}  f6 {[%clk 0:01:43]} 17. g4 {[%clk 0:02:16]}  fxe5 {[%clk 0:01:42]} 18. gxf5 {[%clk 0:02:17]}  exf5 {[%clk 0:01:42]} 19. Rad1 {[%clk 0:02:14]}  Rad8 {[%clk 0:01:41]} 20. f3 {[%clk 0:02:14]}  exd4 {[%clk 0:01:40]} 21. fxe4 {[%clk 0:02:13]}  fxe4 {[%clk 0:01:41]} 22. Qg2 {[%clk 0:02:13]}  Rfe8 {[%clk 0:01:37]} 23. b4 {[%clk 0:02:10]}  d3 {[%clk 0:01:36]} 24. Re3 {[%clk 0:02:10]}  Qd4 {[%clk 0:01:33]} 25. Qf2 {[%clk 0:02:09]}  Rf8 {[%clk 0:01:32]} 26. Qe1 {[%clk 0:02:06]}  Rf3 {[%clk 0:01:29]} 0-1


[Site "https://www.chess.com"]